[Event "Titled Tuesday Blitz June 6 Late 2023"]
[White "Shapiro, David"]
[Black "Yeritsyan, Hayk"]
[WhiteFideId "24133523"]
[BlackFideId "13307320"]
[WhiteElo "2308"]
[BlackElo "2479"]
[Result "0-1"]
[Round "4"]
[TimeControl "180+2"]
[Date "2023.06.07"]
[WhiteClock "0:01:57"]
[BlackClock "0:01:30"]
[Board "76"]

1. e4 {[%clk 0:02:54]}  c6 {[%clk 0:02:59]} 2. Nc3 {[%clk 0:02:54]}  d5 {[%clk 0:03:00]} 3. Nf3 {[%clk 0:02:55]}  Bg4 {[%clk 0:03:00]} 4. h3 {[%clk 0:02:54]}  Bxf3 {[%clk 0:03:00]} 5. Qxf3 {[%clk 0:02:55]}  e6 {[%clk 0:03:01]} 6. d4 {[%clk 0:02:54]}  Nf6 {[%clk 0:03:02]} 7. Bd3 {[%clk 0:02:53]}  Be7 {[%clk 0:03:02]} 8. Qg3 {[%clk 0:02:37]}  dxe4 {[%clk 0:02:48]} 9. Nxe4 {[%clk 0:02:31]}  Nxe4 {[%clk 0:02:48]} 10. Bxe4 {[%clk 0:02:32]}  Qxd4 {[%clk 0:02:46]} 11. Bd3 {[%clk 0:02:27]}  Bb4+ {[%clk 0:02:38]} 12. c3 {[%clk 0:02:13]}  Bxc3+ {[%clk 0:02:37]} 13. bxc3 {[%clk 0:02:14]}  Qxc3+ {[%clk 0:02:38]} 14. Ke2 {[%clk 0:02:14]}  Qxa1 {[%clk 0:02:34]} 15. Qd6 {[%clk 0:02:03]}  Nd7 {[%clk 0:02:23]} 16. Ba3 {[%clk 0:02:00]}  Qe5+ {[%clk 0:02:19]} 17. Kf3 {[%clk 0:01:56]}  Qxd6 {[%clk 0:02:15]} 18. Bxd6 {[%clk 0:01:57]}  O-O-O {[%clk 0:01:53]} 19. Rc1 {[%clk 0:01:57]}  Nf6 {[%clk 0:01:30]} 0-1


[Site "https://www.chess.com"]

[Event "Titled Tuesday Blitz June 6 Late 2023"]
[White "MaryanKyrychenko"]
[Black "Kokoszczynski, Jan"]
[BlackFideId "1174460"]
[WhiteElo "2627"]
[BlackElo "2139"]
[Result "1-0"]
[Round "4"]
[TimeControl "180+2"]
[Date "2023.06.07"]
[WhiteClock "0:00:14"]
[BlackClock "0:00:02"]
[Board "82"]

1. e4 {[%clk 0:02:54]}  e5 {[%clk 0:02:58]} 2. Nf3 {[%clk 0:02:54]}  Nc6 {[%clk 0:02:58]} 3. d4 {[%clk 0:02:51]}  exd4 {[%clk 0:02:58]} 4. Nxd4 {[%clk 0:02:52]}  Nf6 {[%clk 0:02:57]} 5. Nxc6 {[%clk 0:02:52]}  bxc6 {[%clk 0:02:57]} 6. e5 {[%clk 0:02:53]}  Qe7 {[%clk 0:02:44]} 7. Qe2 {[%clk 0:02:53]}  Nd5 {[%clk 0:02:44]} 8. c4 {[%clk 0:02:54]}  Nb6 {[%clk 0:02:44]} 9. b3 {[%clk 0:02:54]}  d6 {[%clk 0:02:19]} 10. exd6 {[%clk 0:02:52]}  Qxe2+ {[%clk 0:02:19]} 11. Bxe2 {[%clk 0:02:52]}  cxd6 {[%clk 0:02:18]} 12. O-O {[%clk 0:02:50]}  Bb7 {[%clk 0:02:05]} 13. Bg4 {[%clk 0:02:45]}  Be7 {[%clk 0:01:50]} 14. Re1 {[%clk 0:02:43]}  Kf8 {[%clk 0:01:50]} 15. Bb2 {[%clk 0:02:41]}  Re8 {[%clk 0:01:49]} 16. a4 {[%clk 0:02:37]}  h5 {[%clk 0:01:49]} 17. Bh3 {[%clk 0:02:24]}  d5 {[%clk 0:01:40]} 18. a5 {[%clk 0:02:17]}  Nc8 {[%clk 0:01:36]} 19. a6 {[%clk 0:02:12]}  Ba8 {[%clk 0:01:35]} 20. Nd2 {[%clk 0:02:01]}  Nb6 {[%clk 0:01:20]} 21. Re2 {[%clk 0:01:29]}  Bb4 {[%clk 0:00:59]} 22. Rxe8+ {[%clk 0:01:17]}  Kxe8 {[%clk 0:01:00]} 23. Bxg7 {[%clk 0:00:59]}  Rg8 {[%clk 0:00:59]} 24. Re1+ {[%clk 0:00:58]}  Kd8 {[%clk 0:00:55]} 25. Bf6+ {[%clk 0:00:59]}  Kc7 {[%clk 0:00:51]} 26. Re2 {[%clk 0:00:54]}  dxc4 {[%clk 0:00:44]} 27. bxc4 {[%clk 0:00:44]}  Bxd2 {[%clk 0:00:28]} 28. Be5+ {[%clk 0:00:38]}  Kd8 {[%clk 0:00:25]} 29. Rxd2+ {[%clk 0:00:38]}  Ke7 {[%clk 0:00:25]} 30. f4 {[%clk 0:00:34]}  f6 {[%clk 0:00:16]} 31. Bd6+ {[%clk 0:00:31]}  Kf7 {[%clk 0:00:16]} 32. c5 {[%clk 0:00:30]}  Nd5 {[%clk 0:00:16]} 33. Re2 {[%clk 0:00:16]}  h4 {[%clk 0:00:02]} 34. Be6+ {[%clk 0:00:14]} 1-0


[Site "https://www.chess.com"]

[Event "Titled Tuesday Blitz June 6 Late 2023"]
[White "Goryachkina, Aleksandra"]
[Black "szachmistrz2500"]
[WhiteFideId "4147103"]
[WhiteElo "2471"]
[BlackElo "2460"]
[Result "1-0"]
[Round "4"]
[TimeControl "180+2"]
[Date "2023.06.07"]
[WhiteClock "0:00:10"]
[BlackClock "0:00:28"]
[Board "84"]

1. e4 {[%clk 0:03:00]}  c5 {[%clk 0:03:00]} 2. Nf3 {[%clk 0:03:00]}  d6 {[%clk 0:03:00]} 3. Bb5+ {[%clk 0:02:59]}  Bd7 {[%clk 0:02:59]} 4. Bxd7+ {[%clk 0:02:59]}  Qxd7 {[%clk 0:02:59]} 5. O-O {[%clk 0:02:59]}  Nc6 {[%clk 0:02:59]} 6. Re1 {[%clk 0:02:56]}  Nf6 {[%clk 0:02:59]} 7. c3 {[%clk 0:02:56]}  e6 {[%clk 0:02:59]} 8. d4 {[%clk 0:02:56]}  cxd4 {[%clk 0:02:59]} 9. cxd4 {[%clk 0:02:57]}  d5 {[%clk 0:03:00]} 10. e5 {[%clk 0:02:57]}  Ne4 {[%clk 0:03:00]} 11. Re3 {[%clk 0:02:57]}  Be7 {[%clk 0:02:51]} 12. Nc3 {[%clk 0:02:57]}  Nxc3 {[%clk 0:02:50]} 13. bxc3 {[%clk 0:02:58]}  Na5 {[%clk 0:02:42]} 14. Ne1 {[%clk 0:02:56]}  O-O-O {[%clk 0:02:17]} 15. Rb1 {[%clk 0:02:46]}  Kb8 {[%clk 0:02:16]} 16. Rg3 {[%clk 0:02:38]}  Rhg8 {[%clk 0:02:07]} 17. Bg5 {[%clk 0:02:02]}  Rc8 {[%clk 0:01:54]} 18. Bxe7 {[%clk 0:02:00]}  Qxe7 {[%clk 0:01:54]} 19. Qa4 {[%clk 0:01:58]}  Nc4 {[%clk 0:01:44]} 20. Nd3 {[%clk 0:01:55]}  Ka8 {[%clk 0:01:42]} 21. h3 {[%clk 0:01:34]}  Nd2 {[%clk 0:01:35]} 22. Re1 {[%clk 0:00:49]}  Ne4 {[%clk 0:01:34]} 23. Rxe4 {[%clk 0:00:48]}  dxe4 {[%clk 0:01:34]} 24. Nc5 {[%clk 0:00:48]}  Rxc5 {[%clk 0:01:27]} 25. dxc5 {[%clk 0:00:48]}  Qxc5 {[%clk 0:01:27]} 26. Rxg7 {[%clk 0:00:45]}  Rd8 {[%clk 0:01:21]} 27. Qd7 {[%clk 0:00:40]}  Rc8 {[%clk 0:01:19]} 28. Rxf7 {[%clk 0:00:38]}  Rb8 {[%clk 0:01:09]} 29. Qd4 {[%clk 0:00:35]}  Qa3 {[%clk 0:00:59]} 30. Rxh7 {[%clk 0:00:27]}  Qxa2 {[%clk 0:00:54]} 31. Rd7 {[%clk 0:00:24]}  Qb1+ {[%clk 0:00:47]} 32. Kh2 {[%clk 0:00:24]}  a6 {[%clk 0:00:47]} 33. Rd8 {[%clk 0:00:18]}  Qc2 {[%clk 0:00:38]} 34. Rxb8+ {[%clk 0:00:18]}  Kxb8 {[%clk 0:00:38]} 35. h4 {[%clk 0:00:18]}  a5 {[%clk 0:00:35]} 36. Qd8+ {[%clk 0:00:17]}  Ka7 {[%clk 0:00:34]} 37. Qxa5+ {[%clk 0:00:18]}  Kb8 {[%clk 0:00:34]} 38. Qd8+ {[%clk 0:00:18]}  Ka7 {[%clk 0:00:35]} 39. Qd4+ {[%clk 0:00:18]}  Ka6 {[%clk 0:00:34]} 40. Qc4+ {[%clk 0:00:15]}  Ka7 {[%clk 0:00:33]} 41. Qc5+ {[%clk 0:00:14]}  Ka6 {[%clk 0:00:34]} 42. Qe3 {[%clk 0:00:13]}  Qd3 {[%clk 0:00:31]} 43. h5 {[%clk 0:00:12]}  Qd5 {[%clk 0:00:31]} 44. Qd4 {[%clk 0:00:10]}  Qd7 {[%clk 0:00:28]} 45. Qxd7 {[%clk 0:00:10]} 1-0


[Site "https://www.chess.com"]

[Event "Titled Tuesday Blitz June 6 Late 2023"]
[White "Rego, Pedro Filipe"]
[Black "Domingo Nunez, Alejandro"]
[WhiteFideId "1904310"]
[BlackFideId "22245561"]
[WhiteElo "2193"]
[BlackElo "2291"]
[Result "0-1"]
[Round "4"]
[TimeControl "180+2"]
[Date "2023.06.07"]
[WhiteClock "0:00:01"]
[BlackClock "0:00:02"]
[Board "86"]

1. d4 {[%clk 0:02:53]}  g6 {[%clk 0:03:00]} 2. e4 {[%clk 0:02:51]}  Bg7 {[%clk 0:03:01]} 3. Nf3 {[%clk 0:02:50]}  c6 {[%clk 0:03:02]} 4. Bd3 {[%clk 0:02:49]}  d5 {[%clk 0:03:02]} 5. e5 {[%clk 0:02:45]}  f6 {[%clk 0:03:02]} 6. h3 {[%clk 0:02:41]}  fxe5 {[%clk 0:03:01]} 7. Nxe5 {[%clk 0:02:42]}  Nf6 {[%clk 0:03:00]} 8. O-O {[%clk 0:02:28]}  Nbd7 {[%clk 0:03:00]} 9. f4 {[%clk 0:02:26]}  O-O {[%clk 0:02:59]} 10. Nd2 {[%clk 0:02:24]}  Nh5 {[%clk 0:02:57]} 11. Ndf3 {[%clk 0:02:20]}  Nxf4 {[%clk 0:02:53]} 12. Bxf4 {[%clk 0:02:21]}  Rxf4 {[%clk 0:02:53]} 13. Ng5 {[%clk 0:02:18]}  Rxf1+ {[%clk 0:02:45]} 14. Qxf1 {[%clk 0:02:19]}  Nxe5 {[%clk 0:02:45]} 15. dxe5 {[%clk 0:02:18]}  Qf8 {[%clk 0:02:38]} 16. Qe2 {[%clk 0:02:12]}  Qf4 {[%clk 0:02:37]} 17. Nf3 {[%clk 0:02:05]}  Bf5 {[%clk 0:02:36]} 18. Bxf5 {[%clk 0:02:02]}  Qxf5 {[%clk 0:02:36]} 19. Re1 {[%clk 0:01:57]}  Rf8 {[%clk 0:02:36]} 20. Nd4 {[%clk 0:01:57]}  Qd7 {[%clk 0:02:27]} 21. c3 {[%clk 0:01:53]}  c5 {[%clk 0:02:20]} 22. Nf3 {[%clk 0:01:50]}  Qf5 {[%clk 0:02:17]} 23. Qb5 {[%clk 0:01:46]}  b6 {[%clk 0:02:17]} 24. a4 {[%clk 0:01:41]}  Bh6 {[%clk 0:02:06]} 25. e6 {[%clk 0:01:32]}  Bf4 {[%clk 0:01:37]} 26. a5 {[%clk 0:01:26]}  Bd6 {[%clk 0:01:36]} 27. axb6 {[%clk 0:01:24]}  axb6 {[%clk 0:01:37]} 28. Qc6 {[%clk 0:01:12]}  Qh5 {[%clk 0:01:28]} 29. Rf1 {[%clk 0:01:07]}  Qf5 {[%clk 0:01:15]} 30. Rd1 {[%clk 0:01:03]}  d4 {[%clk 0:00:56]} 31. cxd4 {[%clk 0:01:01]}  cxd4 {[%clk 0:00:57]} 32. Qc4 {[%clk 0:00:44]}  Qf4 {[%clk 0:00:42]} 33. Qd3 {[%clk 0:00:38]}  Qg3 {[%clk 0:00:37]} 34. Rf1 {[%clk 0:00:32]}  Rf5 {[%clk 0:00:29]} 35. Ra1 {[%clk 0:00:18]}  h5 {[%clk 0:00:08]} 36. Ra8+ {[%clk 0:00:15]}  Kh7 {[%clk 0:00:08]} 37. Rc8 {[%clk 0:00:13]}  Rf4 {[%clk 0:00:04]} 38. h4 {[%clk 0:00:07]}  Rxh4 {[%clk 0:00:02]} 39. Nxh4 {[%clk 0:00:06]}  Qxd3 {[%clk 0:00:02]} 40. Nf3 {[%clk 0:00:01]}  Qe3+ {[%clk 0:00:02]} 41. Kf1 {[%clk 0:00:02]}  Bg3 {[%clk 0:00:02]} 42. Rc2 {[%clk 0:00:01]}  d3 {[%clk 0:00:02]} 43. Re2 {[%clk 0:00:01]}  Qxe2+ {[%clk 0:00:02]} 0-1


[Site "https://www.chess.com"]

[Event "Titled Tuesday Blitz June 6 Late 2023"]
[White "Kovalevsky, Stanislav"]
[Black "Martic, Ivan"]
[WhiteFideId "13508598"]
[BlackFideId "929301"]
[WhiteElo "2112"]
[BlackElo "2346"]
[Result "0-1"]
[Round "4"]
[TimeControl "180+2"]
[Date "2023.06.07"]
[WhiteClock "0:00:03"]
[BlackClock "0:01:44"]
[Board "87"]

1. c4 {[%clk 0:03:00]}  Nf6 {[%clk 0:02:57]} 2. Nc3 {[%clk 0:03:00]}  g6 {[%clk 0:02:56]} 3. g3 {[%clk 0:03:01]}  Bg7 {[%clk 0:02:56]} 4. Bg2 {[%clk 0:03:01]}  O-O {[%clk 0:02:56]} 5. b4 {[%clk 0:02:59]}  e5 {[%clk 0:02:49]} 6. Bb2 {[%clk 0:02:39]}  Nc6 {[%clk 0:02:48]} 7. b5 {[%clk 0:02:37]}  Nd4 {[%clk 0:02:41]} 8. e3 {[%clk 0:02:34]}  Nf5 {[%clk 0:02:41]} 9. Nge2 {[%clk 0:02:32]}  h5 {[%clk 0:02:40]} 10. Qc2 {[%clk 0:02:24]}  Re8 {[%clk 0:02:40]} 11. Nd5 {[%clk 0:01:59]}  c6 {[%clk 0:02:36]} 12. Nxf6+ {[%clk 0:01:54]}  Bxf6 {[%clk 0:02:37]} 13. Nc3 {[%clk 0:01:27]}  Qe7 {[%clk 0:02:21]} 14. O-O {[%clk 0:01:16]}  h4 {[%clk 0:02:20]} 15. Ne4 {[%clk 0:01:15]}  Bg7 {[%clk 0:02:18]} 16. bxc6 {[%clk 0:00:50]}  dxc6 {[%clk 0:02:15]} 17. f4 {[%clk 0:00:43]}  hxg3 {[%clk 0:02:10]} 18. hxg3 {[%clk 0:00:43]}  Bd7 {[%clk 0:02:04]} 19. a4 {[%clk 0:00:28]}  c5 {[%clk 0:02:01]} 20. a5 {[%clk 0:00:15]}  Bc6 {[%clk 0:01:58]} 21. Ba3 {[%clk 0:00:13]}  exf4 {[%clk 0:01:55]} 22. Bxc5 {[%clk 0:00:12]}  Bxe4 {[%clk 0:01:55]} 23. Bxe7 {[%clk 0:00:07]}  Bxc2 {[%clk 0:01:54]} 24. Bc5 {[%clk 0:00:07]}  Bxa1 {[%clk 0:01:51]} 25. Rxa1 {[%clk 0:00:04]}  fxe3 {[%clk 0:01:47]} 26. Bxb7 {[%clk 0:00:03]}  Rab8 {[%clk 0:01:45]} 27. a6 {[%clk 0:00:03]}  exd2 {[%clk 0:01:45]} 28. Bxa7 {[%clk 0:00:03]}  Re1+ {[%clk 0:01:44]} 0-1


[Site "https://www.chess.com"]

[Event "Titled Tuesday Blitz June 6 Late 2023"]
[White "Eidelman, Gabriel"]
[Black "Omranalhosani21"]
[WhiteFideId "30910544"]
[WhiteElo "2456"]
[BlackElo "2609"]
[Result "0-1"]
[Round "4"]
[TimeControl "180+2"]
[Date "2023.06.07"]
[WhiteClock "0:00:01"]
[BlackClock "0:00:12"]
[Board "88"]

1. Nc3 {[%clk 0:02:56]}  c5 {[%clk 0:02:58]} 2. e4 {[%clk 0:02:56]}  Nc6 {[%clk 0:02:58]} 3. f4 {[%clk 0:02:54]}  d6 {[%clk 0:02:55]} 4. Nf3 {[%clk 0:02:54]}  g6 {[%clk 0:02:56]} 5. g3 {[%clk 0:02:52]}  Bg7 {[%clk 0:02:55]} 6. Bg2 {[%clk 0:02:52]}  Nh6 {[%clk 0:02:54]} 7. O-O {[%clk 0:02:52]}  O-O {[%clk 0:02:54]} 8. d3 {[%clk 0:02:46]}  f5 {[%clk 0:02:49]} 9. h3 {[%clk 0:02:15]}  e6 {[%clk 0:02:38]} 10. Be3 {[%clk 0:01:57]}  Nd4 {[%clk 0:02:35]} 11. Rb1 {[%clk 0:01:41]}  Rb8 {[%clk 0:02:32]} 12. Ne2 {[%clk 0:01:40]}  Nc6 {[%clk 0:02:19]} 13. c3 {[%clk 0:01:22]}  b5 {[%clk 0:02:17]} 14. b4 {[%clk 0:01:11]}  cxb4 {[%clk 0:02:12]} 15. cxb4 {[%clk 0:01:11]}  Bd7 {[%clk 0:02:11]} 16. Qb3 {[%clk 0:01:06]}  Kh8 {[%clk 0:02:10]} 17. Rfc1 {[%clk 0:01:02]}  a5 {[%clk 0:01:52]} 18. a3 {[%clk 0:01:00]}  axb4 {[%clk 0:01:49]} 19. axb4 {[%clk 0:01:00]}  Ra8 {[%clk 0:01:46]} 20. Nfd4 {[%clk 0:00:59]}  Nxd4 {[%clk 0:01:35]} 21. Bxd4 {[%clk 0:00:58]}  e5 {[%clk 0:01:34]} 22. Be3 {[%clk 0:00:56]}  Rc8 {[%clk 0:01:21]} 23. fxe5 {[%clk 0:00:51]}  dxe5 {[%clk 0:01:18]} 24. d4 {[%clk 0:00:44]}  fxe4 {[%clk 0:01:05]} 25. Bxe4 {[%clk 0:00:35]}  Bxh3 {[%clk 0:00:58]} 26. dxe5 {[%clk 0:00:32]}  Rxc1+ {[%clk 0:00:55]} 27. Rxc1 {[%clk 0:00:31]}  Ng4 {[%clk 0:00:54]} 28. Bc5 {[%clk 0:00:16]}  Qd2 {[%clk 0:00:33]} 29. Bxf8 {[%clk 0:00:08]}  Bxf8 {[%clk 0:00:26]} 30. Qd3 {[%clk 0:00:05]}  Bxb4 {[%clk 0:00:14]} 31. Qxd2 {[%clk 0:00:04]}  Bxd2 {[%clk 0:00:15]} 32. Rc8+ {[%clk 0:00:04]}  Kg7 {[%clk 0:00:15]} 33. Nf4 {[%clk 0:00:04]}  Nxe5 {[%clk 0:00:13]} 34. Rc7+ {[%clk 0:00:02]}  Kh6 {[%clk 0:00:12]} 35. Kf2 {[%clk 0:00:02]}  b4 {[%clk 0:00:12]} 36. Ke2 {[%clk 0:00:02]}  Bc3 {[%clk 0:00:12]} 37. Nd5 {[%clk 0:00:02]}  Bg4+ {[%clk 0:00:13]} 38. Ke3 {[%clk 0:00:01]}  Be1 {[%clk 0:00:12]} 0-1


[Site "https://www.chess.com"]

[Event "Titled Tuesday Blitz June 6 Late 2023"]
[White "Vega Gutierrez, Sabrina"]
[Black "Gubajdullin, Alexei"]
[WhiteFideId "2219026"]
[BlackFideId "4141202"]
[WhiteElo "2209"]
[BlackElo "2279"]
[Result "0-1"]
[Round "4"]
[TimeControl "180+2"]
[Date "2023.06.07"]
[WhiteClock "0:00:19"]
[BlackClock "0:00:47"]
[Board "89"]

1. e4 {[%clk 0:03:00]}  c6 {[%clk 0:02:59]} 2. d4 {[%clk 0:03:00]}  d5 {[%clk 0:02:59]} 3. e5 {[%clk 0:02:59]}  Bf5 {[%clk 0:02:59]} 4. Nd2 {[%clk 0:02:58]}  e6 {[%clk 0:02:59]} 5. Nb3 {[%clk 0:02:59]}  Nd7 {[%clk 0:02:59]} 6. Nf3 {[%clk 0:02:59]}  h6 {[%clk 0:02:58]} 7. Be2 {[%clk 0:02:58]}  Ne7 {[%clk 0:02:57]} 8. O-O {[%clk 0:02:59]}  g5 {[%clk 0:02:56]} 9. Ne1 {[%clk 0:02:54]}  Qc7 {[%clk 0:02:47]} 10. f4 {[%clk 0:02:44]}  a6 {[%clk 0:02:42]} 11. fxg5 {[%clk 0:02:08]}  hxg5 {[%clk 0:02:42]} 12. Bxg5 {[%clk 0:02:09]}  c5 {[%clk 0:02:42]} 13. c3 {[%clk 0:02:09]}  f6 {[%clk 0:02:32]} 14. exf6 {[%clk 0:01:40]}  Qxh2+ {[%clk 0:02:28]} 15. Kf2 {[%clk 0:01:40]}  Ng6 {[%clk 0:02:16]} 16. Nf3 {[%clk 0:01:40]}  Qc7 {[%clk 0:02:13]} 17. Bd3 {[%clk 0:01:39]}  O-O-O {[%clk 0:02:01]} 18. Bxf5 {[%clk 0:01:37]}  exf5 {[%clk 0:02:01]} 19. Rh1 {[%clk 0:01:29]}  Bd6 {[%clk 0:02:01]} 20. Rxh8 {[%clk 0:01:19]}  Rxh8 {[%clk 0:02:00]} 21. Qd3 {[%clk 0:01:11]}  Bg3+ {[%clk 0:01:24]} 22. Kg1 {[%clk 0:01:10]}  Nf4 {[%clk 0:01:21]} 23. Qxf5 {[%clk 0:01:02]}  cxd4 {[%clk 0:00:52]} 24. cxd4 {[%clk 0:00:42]}  Ne2+ {[%clk 0:00:50]} 25. Kf1 {[%clk 0:00:41]}  Qc4 {[%clk 0:00:49]} 26. Na5 {[%clk 0:00:24]}  Rh1+ {[%clk 0:00:48]} 27. Ng1 {[%clk 0:00:19]}  Rxg1# {[%clk 0:00:47]} 0-1


[Site "https://www.chess.com"]

[Event "Titled Tuesday Blitz June 6 Late 2023"]
[White "Alexikov, Alexander"]
[Black "Melian, Juan Sebastian"]
[WhiteFideId "14103958"]
[BlackFideId "3706575"]
[WhiteElo "2186"]
[BlackElo "2092"]
[Result "1-0"]
[Round "4"]
[TimeControl "180+2"]
[Date "2023.06.07"]
[WhiteClock "0:00:06"]
[BlackClock "0:00:03"]
[Board "90"]

1. e4 {[%clk 0:03:00]}  c6 {[%clk 0:02:51]} 2. d3 {[%clk 0:02:56]}  d5 {[%clk 0:02:52]} 3. Nd2 {[%clk 0:02:56]}  g6 {[%clk 0:02:49]} 4. Ngf3 {[%clk 0:02:55]}  Bg7 {[%clk 0:02:50]} 5. g3 {[%clk 0:02:55]}  Bg4 {[%clk 0:02:50]} 6. h3 {[%clk 0:02:54]}  Bxf3 {[%clk 0:02:49]} 7. Qxf3 {[%clk 0:02:53]}  e6 {[%clk 0:02:49]} 8. Bg2 {[%clk 0:02:51]}  Nd7 {[%clk 0:02:49]} 9. Qe2 {[%clk 0:02:51]}  Ne7 {[%clk 0:02:49]} 10. c3 {[%clk 0:02:49]}  a5 {[%clk 0:02:49]} 11. d4 {[%clk 0:02:43]}  a4 {[%clk 0:02:43]} 12. a3 {[%clk 0:02:41]}  O-O {[%clk 0:02:41]} 13. O-O {[%clk 0:02:39]}  Qb6 {[%clk 0:02:36]} 14. Kh2 {[%clk 0:02:37]}  Rfe8 {[%clk 0:02:34]} 15. f4 {[%clk 0:02:32]}  c5 {[%clk 0:02:34]} 16. dxc5 {[%clk 0:02:09]}  Nxc5 {[%clk 0:02:35]} 17. e5 {[%clk 0:02:08]}  Nc6 {[%clk 0:02:34]} 18. Nf3 {[%clk 0:02:04]}  Nb3 {[%clk 0:02:34]} 19. Be3 {[%clk 0:02:02]}  Qc7 {[%clk 0:02:17]} 20. Rad1 {[%clk 0:02:00]}  Bf8 {[%clk 0:02:14]} 21. Qf2 {[%clk 0:01:57]}  Ra6 {[%clk 0:02:13]} 22. g4 {[%clk 0:01:55]}  b6 {[%clk 0:02:11]} 23. Nd4 {[%clk 0:01:47]}  Ncxd4 {[%clk 0:02:05]} 24. cxd4 {[%clk 0:01:46]}  Ra7 {[%clk 0:01:59]} 25. Rd3 {[%clk 0:01:41]}  Qd7 {[%clk 0:01:56]} 26. Rc3 {[%clk 0:01:37]}  Rc8 {[%clk 0:01:55]} 27. Bd2 {[%clk 0:01:30]}  Rac7 {[%clk 0:01:52]} 28. Qe3 {[%clk 0:01:18]}  Nxd2 {[%clk 0:01:41]} 29. Qxd2 {[%clk 0:01:17]}  Rxc3 {[%clk 0:01:41]} 30. bxc3 {[%clk 0:01:17]}  Bxa3 {[%clk 0:01:41]} 31. Ra1 {[%clk 0:01:15]}  Bf8 {[%clk 0:01:42]} 32. f5 {[%clk 0:01:07]}  exf5 {[%clk 0:01:38]} 33. gxf5 {[%clk 0:01:06]}  Qxf5 {[%clk 0:01:39]} 34. Bxd5 {[%clk 0:01:05]}  Rc7 {[%clk 0:01:27]} 35. c4 {[%clk 0:01:03]}  a3 {[%clk 0:01:23]} 36. Qe2 {[%clk 0:01:00]}  Qf4+ {[%clk 0:01:22]} 37. Kh1 {[%clk 0:00:59]}  Qxd4 {[%clk 0:01:23]} 38. Rd1 {[%clk 0:00:57]}  Qh4 {[%clk 0:01:15]} 39. Qf3 {[%clk 0:00:54]}  a2 {[%clk 0:01:05]} 40. e6 {[%clk 0:00:51]}  Bg7 {[%clk 0:00:46]} 41. exf7+ {[%clk 0:00:46]}  Kf8 {[%clk 0:00:46]} 42. Qa3+ {[%clk 0:00:43]}  Rc5 {[%clk 0:00:32]} 43. Qa8+ {[%clk 0:00:38]}  Ke7 {[%clk 0:00:31]} 44. Qe8+ {[%clk 0:00:29]}  Kf6 {[%clk 0:00:27]} 45. f8=Q+ {[%clk 0:00:21]}  Bxf8 {[%clk 0:00:28]} 46. Qxf8+ {[%clk 0:00:21]}  Ke5 {[%clk 0:00:28]} 47. Qf3 {[%clk 0:00:16]}  Ra5 {[%clk 0:00:06]} 48. Qc3+ {[%clk 0:00:11]}  Kf5 {[%clk 0:00:03]} 49. Rf1+ {[%clk 0:00:09]}  Kg5 {[%clk 0:00:03]} 50. Qd2+ {[%clk 0:00:08]}  Kh5 {[%clk 0:00:03]} 51. Bf3+ {[%clk 0:00:06]} 1-0


[Site "https://www.chess.com"]

[Event "Titled Tuesday Blitz June 6 Late 2023"]
[White "Przybylski, Wojciech"]
[Black "reevecanada"]
[WhiteFideId "1117599"]
[WhiteElo "2228"]
[BlackElo "2586"]
[Result "0-1"]
[Round "4"]
[TimeControl "180+2"]
[Date "2023.06.07"]
[WhiteClock "0:00:04"]
[BlackClock "0:00:13"]
[Board "92"]

1. e4 {[%clk 0:03:00]}  c5 {[%clk 0:02:58]} 2. Nf3 {[%clk 0:03:00]}  d6 {[%clk 0:02:58]} 3. Bc4 {[%clk 0:02:59]}  Nc6 {[%clk 0:02:53]} 4. d3 {[%clk 0:02:58]}  Nf6 {[%clk 0:02:53]} 5. c3 {[%clk 0:02:56]}  e6 {[%clk 0:02:53]} 6. O-O {[%clk 0:02:55]}  Be7 {[%clk 0:02:53]} 7. Re1 {[%clk 0:02:54]}  O-O {[%clk 0:02:53]} 8. a4 {[%clk 0:02:54]}  b6 {[%clk 0:02:53]} 9. h3 {[%clk 0:02:53]}  Bb7 {[%clk 0:02:52]} 10. Ba2 {[%clk 0:02:53]}  a6 {[%clk 0:02:50]} 11. Nbd2 {[%clk 0:02:52]}  b5 {[%clk 0:02:49]} 12. Bb1 {[%clk 0:02:52]}  Qb6 {[%clk 0:02:46]} 13. Qe2 {[%clk 0:02:51]}  Nd7 {[%clk 0:02:45]} 14. Nf1 {[%clk 0:02:48]}  Bf6 {[%clk 0:02:44]} 15. Be3 {[%clk 0:02:47]}  d5 {[%clk 0:02:43]} 16. Ng3 {[%clk 0:02:37]}  b4 {[%clk 0:02:37]} 17. Nh5 {[%clk 0:02:26]}  bxc3 {[%clk 0:02:28]} 18. Nxf6+ {[%clk 0:02:25]}  Nxf6 {[%clk 0:02:26]} 19. bxc3 {[%clk 0:02:25]}  Qa5 {[%clk 0:02:23]} 20. Bd2 {[%clk 0:02:21]}  Qc7 {[%clk 0:02:20]} 21. e5 {[%clk 0:02:19]}  Nd7 {[%clk 0:02:19]} 22. d4 {[%clk 0:02:19]}  Rfb8 {[%clk 0:02:10]} 23. Ng5 {[%clk 0:02:05]}  Nf8 {[%clk 0:02:07]} 24. Qd3 {[%clk 0:02:00]}  h6 {[%clk 0:02:02]} 25. Nh7 {[%clk 0:01:47]}  Ng6 {[%clk 0:01:59]} 26. h4 {[%clk 0:01:40]}  Kxh7 {[%clk 0:01:53]} 27. h5 {[%clk 0:01:40]}  Ne7 {[%clk 0:01:52]} 28. Qf3 {[%clk 0:01:33]}  Kg8 {[%clk 0:01:25]} 29. hxg6 {[%clk 0:01:31]}  Nxg6 {[%clk 0:01:25]} 30. Qg4 {[%clk 0:01:27]}  cxd4 {[%clk 0:01:17]} 31. cxd4 {[%clk 0:00:53]}  Bc8 {[%clk 0:01:03]} 32. Rc1 {[%clk 0:00:45]}  Qe7 {[%clk 0:00:49]} 33. Bxg6 {[%clk 0:00:42]}  fxg6 {[%clk 0:00:46]} 34. Qxg6 {[%clk 0:00:42]}  Kh8 {[%clk 0:00:30]} 35. Ba5 {[%clk 0:00:38]}  Rb7 {[%clk 0:00:29]} 36. Rc5 {[%clk 0:00:33]}  Bd7 {[%clk 0:00:28]} 37. Ra3 {[%clk 0:00:30]}  Rb1+ {[%clk 0:00:24]} 38. Qxb1 {[%clk 0:00:28]}  Qh4 {[%clk 0:00:22]} 39. Qd1 {[%clk 0:00:18]}  Rf8 {[%clk 0:00:21]} 40. Rg3 {[%clk 0:00:18]}  Rf4 {[%clk 0:00:20]} 41. Rc7 {[%clk 0:00:17]}  Rxd4 {[%clk 0:00:19]} 42. Qe1 {[%clk 0:00:15]}  Be8 {[%clk 0:00:18]} 43. Rc8 {[%clk 0:00:14]}  Qh5 {[%clk 0:00:18]} 44. Rf3 {[%clk 0:00:14]}  Kh7 {[%clk 0:00:18]} 45. Rh3 {[%clk 0:00:08]}  Qg6 {[%clk 0:00:17]} 46. Rg3 {[%clk 0:00:08]}  Qh5 {[%clk 0:00:17]} 47. Rh3 {[%clk 0:00:08]}  Qg6 {[%clk 0:00:17]} 48. Bd2 {[%clk 0:00:08]}  Bxa4 {[%clk 0:00:16]} 49. Kh2 {[%clk 0:00:08]}  Rg4 {[%clk 0:00:15]} 50. g3 {[%clk 0:00:07]}  Re4 {[%clk 0:00:14]} 51. Qf1 {[%clk 0:00:06]}  Qf5 {[%clk 0:00:13]} 52. Bf4 {[%clk 0:00:06]}  Bb5 {[%clk 0:00:12]} 53. Qd1 {[%clk 0:00:05]}  Re2 {[%clk 0:00:12]} 54. Kg1 {[%clk 0:00:05]}  Qe4 {[%clk 0:00:13]} 55. Rh4 {[%clk 0:00:04]}  Re1+ {[%clk 0:00:13]} 56. Qxe1 {[%clk 0:00:04]}  Qxe1+ {[%clk 0:00:13]} 57. Kg2 {[%clk 0:00:04]}  Bf1+ {[%clk 0:00:14]} 58. Kf3 {[%clk 0:00:04]}  Qe2# {[%clk 0:00:13]} 0-1


[Site "https://www.chess.com"]